[Event "*** Titled Tuesday Blitz"]
[Site "Chess.com"]
[Date "2021.02.02"]
[Round "3"]
[White "Arvids_Andrejevs"]
[Black "DamianoLew95"]
[Result "0-1"]
[WhiteElo "2386"]
[BlackElo "2578"]
[TimeControl "180+1"]
[EndTime "10:34:22 PST"]
[Termination "DamianoLew95 won by checkmate"]

1. e4 {[%clk 0:03:00.9]} 1... c5 {[%clk 0:02:58.1]} 2. c3 {[%clk 0:03:00.3]}
2... d5 {[%clk 0:02:56.4]} 3. exd5 {[%clk 0:03:01.2]} 3... Qxd5 {[%clk
0:02:55.8]} 4. d4 {[%clk 0:03:01.8]} 4... Nc6 {[%clk 0:02:55.8]} 5. Nf3 {[%clk
0:03:01.5]} 5... Nf6 {[%clk 0:02:54.5]} 6. Be3 {[%clk 0:03:00.9]} 6... cxd4
{[%clk 0:02:49.2]} 7. cxd4 {[%clk 0:03:00.9]} 7... Bg4 {[%clk 0:02:49.7]} 8. Be2
{[%clk 0:02:45.6]} 8... e6 {[%clk 0:02:49.2]} 9. Nc3 {[%clk 0:02:45.4]} 9... Qa5
{[%clk 0:02:49.1]} 10. h3 {[%clk 0:02:45.3]} 10... Bh5 {[%clk 0:02:48.6]} 11.
O-O {[%clk 0:02:45.4]} 11... Be7 {[%clk 0:02:44.6]} 12. a3 {[%clk 0:02:45.1]}
12... O-O {[%clk 0:02:44.2]} 13. Qb3 {[%clk 0:02:45.1]} 13... Qc7 {[%clk
0:02:36.4]} 14. Rfd1 {[%clk 0:02:42.8]} 14... Na5 {[%clk 0:02:17.8]} 15. Qa4
{[%clk 0:02:34.7]} 15... a6 {[%clk 0:02:07.5]} 16. Rac1 {[%clk 0:02:31.1]} 16...
Qd8 {[%clk 0:02:02.8]} 17. b4 {[%clk 0:02:10.5]} 17... Nc6 {[%clk 0:02:01]} 18.
Qb3 {[%clk 0:02:04.9]} 18... Nd5 {[%clk 0:01:48]} 19. Ne4 {[%clk 0:01:50]} 19...
a5 {[%clk 0:01:04.9]} 20. b5 {[%clk 0:01:43.4]} 20... Nb8 {[%clk 0:01:00.9]} 21.
a4 {[%clk 0:01:29]} 21... Nd7 {[%clk 0:00:55]} 22. Ng3 {[%clk 0:01:16.7]} 22...
Bg6 {[%clk 0:00:53]} 23. Ne5 {[%clk 0:01:15.9]} 23... Nxe5 {[%clk 0:00:51.6]}
24. dxe5 {[%clk 0:01:16.8]} 24... Qb8 {[%clk 0:00:46.1]} 25. Bd4 {[%clk
0:01:05.1]} 25... Rd8 {[%clk 0:00:43.9]} 26. Bf3 {[%clk 0:01:02]} 26... Rd7
{[%clk 0:00:39.5]} 27. Ne4 {[%clk 0:00:53]} 27... Qd8 {[%clk 0:00:37.4]} 28. Nc5
{[%clk 0:00:47.5]} 28... Bxc5 {[%clk 0:00:32.3]} 29. Bxc5 {[%clk 0:00:47.3]}
29... h6 {[%clk 0:00:19.9]} 30. Bd6 {[%clk 0:00:46.9]} 30... Rc8 {[%clk
0:00:18.1]} 31. Rxc8 {[%clk 0:00:44.8]} 31... Qxc8 {[%clk 0:00:18.2]} 32. Bxd5
{[%clk 0:00:44.3]} 32... exd5 {[%clk 0:00:15.9]} 33. Qxd5 {[%clk 0:00:42.1]}
33... Bf5 {[%clk 0:00:15.7]} 34. Qd2 {[%clk 0:00:36]} 34... Qc4 {[%clk
0:00:14.7]} 35. Qxa5 {[%clk 0:00:30.1]} 35... Be4 {[%clk 0:00:12.1]} 36. Qa8+
{[%clk 0:00:23.1]} 36... Kh7 {[%clk 0:00:11.2]} 37. Qe8 {[%clk 0:00:22.2]} 37...
Bf5 {[%clk 0:00:05.5]} 38. Rf1 {[%clk 0:00:15]} 38... Qe2 {[%clk 0:00:05.3]} 39.
Qc8 {[%clk 0:00:12.2]} 39... Be6 {[%clk 0:00:05.4]} 40. Qc3 {[%clk 0:00:11.3]}
40... Qe4 {[%clk 0:00:05.2]} 41. Rc1 {[%clk 0:00:09.8]} 41... Bf5 {[%clk
0:00:04.2]} 42. g4 {[%clk 0:00:08.5]} 42... Bg6 {[%clk 0:00:04.1]} 43. Re1
{[%clk 0:00:08.3]} 43... Qf4 {[%clk 0:00:03.6]} 44. Qe3 {[%clk 0:00:08.1]} 44...
Qxa4 {[%clk 0:00:03.5]} 45. e6 {[%clk 0:00:07.3]} 45... fxe6 {[%clk 0:00:03.5]}
46. Qxe6 {[%clk 0:00:07.8]} 46... Qxb5 {[%clk 0:00:04.1]} 47. Be5 {[%clk
0:00:06.2]} 47... Qc6 {[%clk 0:00:03.7]} 48. Qxc6 {[%clk 0:00:05.7]} 48... bxc6
{[%clk 0:00:04.6]} 49. f4 {[%clk 0:00:06]} 49... Bd3 {[%clk 0:00:04.5]} 50. f5
{[%clk 0:00:06]} 50... Bc4 {[%clk 0:00:04.8]} 51. Bc3 {[%clk 0:00:05.9]} 51...
Bd5 {[%clk 0:00:05]} 52. Kf2 {[%clk 0:00:05.4]} 52... Rb7 {[%clk 0:00:05]} 53.
Re5 {[%clk 0:00:04.8]} 53... Rb3 {[%clk 0:00:04.5]} 54. Bd4 {[%clk 0:00:04.3]}
54... Rd3 {[%clk 0:00:04.7]} 55. Ba1 {[%clk 0:00:03.7]} 55... Rf3+ {[%clk
0:00:04.2]} 56. Ke2 {[%clk 0:00:03.3]} 56... Kg8 {[%clk 0:00:03.5]} 57. Re7
{[%clk 0:00:03.3]} 57... Bf7 {[%clk 0:00:03.7]} 58. Rc7 {[%clk 0:00:03.5]} 58...
Rxh3 {[%clk 0:00:03.5]} 59. Rc8+ {[%clk 0:00:03.9]} 59... Kh7 {[%clk 0:00:03.8]}
60. Rc7 {[%clk 0:00:04.6]} 60... Rh2+ {[%clk 0:00:04.3]} 61. Kf3 {[%clk
0:00:04.4]} 61... Bd5+ {[%clk 0:00:04.1]} 62. Kf4 {[%clk 0:00:04.9]} 62... Rf2+
{[%clk 0:00:04.2]} 63. Kg3 {[%clk 0:00:05.2]} 63... Rf3+ {[%clk 0:00:04.4]} 64.
Kh4 {[%clk 0:00:04.8]} 64... Kg8 {[%clk 0:00:03.7]} 65. Rxg7+ {[%clk 0:00:04.7]}
65... Kf8 {[%clk 0:00:04.1]} 66. Rg6 {[%clk 0:00:05]} 66... Kf7 {[%clk 0:00:04]}
67. Rxh6 {[%clk 0:00:04.8]} 67... Rf1 {[%clk 0:00:04.6]} 68. Kg5 {[%clk
0:00:04.8]} 68... Rg1 {[%clk 0:00:04.2]} 69. Rh7+ {[%clk 0:00:05.1]} 69... Kg8
{[%clk 0:00:04.5]} 70. Rg7+ {[%clk 0:00:05.1]} 70... Kf8 {[%clk 0:00:05]} 71.
Rc7 {[%clk 0:00:04.7]} 71... Rxa1 {[%clk 0:00:04.4]} 72. Rc8+ {[%clk 0:00:05]}
72... Kf7 {[%clk 0:00:04.4]} 73. Rc7+ {[%clk 0:00:05.9]} 73... Ke8 {[%clk
0:00:04.7]} 74. Rc8+ {[%clk 0:00:05.9]} 74... Kd7 {[%clk 0:00:05]} 75. Rh8
{[%clk 0:00:05.8]} 75... Rg1 {[%clk 0:00:05.3]} 76. f6 {[%clk 0:00:06]} 76...
Be6 {[%clk 0:00:05.6]} 77. Rh4 {[%clk 0:00:05.5]} 77... Ke8 {[%clk 0:00:04.7]}
78. Kf4 {[%clk 0:00:05.6]} 78... Kf7 {[%clk 0:00:04.6]} 79. g5 {[%clk
0:00:04.5]} 79... Rf1+ {[%clk 0:00:05]} 80. Ke5 {[%clk 0:00:04.6]} 80... Re1+
{[%clk 0:00:05.4]} 81. Kd4 {[%clk 0:00:03.9]} 81... Kg6 {[%clk 0:00:04.4]} 82.
Rf4 {[%clk 0:00:02.7]} 82... Bf7 {[%clk 0:00:04.4]} 83. Rg4 {[%clk 0:00:02.5]}
83... Kf5 {[%clk 0:00:04.3]} 84. Rg3 {[%clk 0:00:02.5]} 84... Kg6 {[%clk
0:00:04.6]} 85. Kc5 {[%clk 0:00:02.6]} 85... Rc1+ {[%clk 0:00:05]} 86. Kd6
{[%clk 0:00:03]} 86... c5 {[%clk 0:00:05.4]} 87. Ke7 {[%clk 0:00:03.3]} 87... c4
{[%clk 0:00:05.6]} 88. Rh3 {[%clk 0:00:02.9]} 88... Re1+ {[%clk 0:00:05.8]} 89.
Kd7 {[%clk 0:00:03]} 89... Kxg5 {[%clk 0:00:05.8]} 90. Rg3+ {[%clk 0:00:03.4]}
90... Kxf6 {[%clk 0:00:06.1]} 91. Rf3+ {[%clk 0:00:04]} 91... Kg7 {[%clk
0:00:06.1]} 92. Kc6 {[%clk 0:00:04.7]} 92... Bg6 {[%clk 0:00:05.4]} 93. Kc5
{[%clk 0:00:04.8]} 93... Bd3 {[%clk 0:00:05.7]} 94. Kd4 {[%clk 0:00:05.1]} 94...
Kg6 {[%clk 0:00:05.9]} 95. Kc3 {[%clk 0:00:05.5]} 95... Kg5 {[%clk 0:00:06.2]}
96. Rg3+ {[%clk 0:00:05.9]} 96... Kf4 {[%clk 0:00:06.4]} 97. Rg8 {[%clk
0:00:06.3]} 97... Rc1+ {[%clk 0:00:05.4]} 98. Kb2 {[%clk 0:00:05]} 98... Rc2+
{[%clk 0:00:05.6]} 99. Ka1 {[%clk 0:00:05.2]} 99... Rh2 {[%clk 0:00:06.5]} 100.
Rf8+ {[%clk 0:00:04.9]} 100... Ke3 {[%clk 0:00:06.4]} 101. Re8+ {[%clk
0:00:05.1]} 101... Be4 {[%clk 0:00:06.3]} 102. Rc8 {[%clk 0:00:04.9]} 102...
Rh1+ {[%clk 0:00:06.3]} 103. Ka2 {[%clk 0:00:04.7]} 103... Bd3 {[%clk
0:00:06.7]} 104. Kb2 {[%clk 0:00:04.4]} 104... Kd2 {[%clk 0:00:06.4]} 105. Rc7
{[%clk 0:00:03.7]} 105... c3+ {[%clk 0:00:05.6]} 106. Rxc3 {[%clk 0:00:03]}
106... Rb1+ {[%clk 0:00:05.8]} 107. Ka3 {[%clk 0:00:02.3]} 107... Kxc3 {[%clk
0:00:05.9]} 108. Ka2 {[%clk 0:00:03.2]} 108... Rb6 {[%clk 0:00:05.8]} 109. Ka3
{[%clk 0:00:04.1]} 109... Ra6# {[%clk 0:00:06.1]} 0-1

[Event "*** Titled Tuesday Blitz"]
[Site "Chess.com"]
[Date "2021.02.02"]
[Round "4"]
[White "kikydu96"]
[Black "XDPS"]
[Result "1-0"]
[WhiteElo "2577"]
[BlackElo "2702"]
[TimeControl "180+1"]
[EndTime "10:36:30 PST"]
[Termination "kikydu96 won by checkmate"]

1. e4 {[%clk 0:03:00.9]} 1... e5 {[%clk 0:02:59.1]} 2. Nf3 {[%clk 0:03:00.5]}
2... Nc6 {[%clk 0:02:59.2]} 3. d4 {[%clk 0:02:59.7]} 3... exd4 {[%clk
0:02:59.2]} 4. Nxd4 {[%clk 0:03:00.6]} 4... Bc5 {[%clk 0:02:59.6]} 5. Be3 {[%clk
0:03:00]} 5... Qf6 {[%clk 0:02:58.7]} 6. Nb5 {[%clk 0:02:59.9]} 6... Bxe3 {[%clk
0:02:57.6]} 7. fxe3 {[%clk 0:03:00.8]} 7... Qh4+ {[%clk 0:02:56.5]} 8. g3 {[%clk
0:03:00.6]} 8... Qxe4 {[%clk 0:02:57]} 9. Nxc7+ {[%clk 0:02:59.7]} 9... Kd8
{[%clk 0:02:57.1]} 10. Nxa8 {[%clk 0:03:00.6]} 10... Qxh1 {[%clk 0:02:56.7]} 11.
Qd6 {[%clk 0:03:01.2]} 11... Nf6 {[%clk 0:02:51]} 12. Nd2 {[%clk 0:02:50.3]}
12... Qd5 {[%clk 0:02:41.4]} 13. Qc7+ {[%clk 0:02:37.3]} 13... Ke7 {[%clk
0:02:41.2]} 14. O-O-O {[%clk 0:02:31.5]} 14... Qxa2 {[%clk 0:02:39]} 15. Nb3
{[%clk 0:02:31.1]} 15... Rd8 {[%clk 0:02:24.9]} 16. Qd6+ {[%clk 0:02:28.5]}
16... Ke8 {[%clk 0:02:24.7]} 17. Nc7# {[%clk 0:02:29.4]} 1-0

[Event "*** Titled Tuesday Blitz"]
[Site "Chess.com"]
[Date "2021.02.02"]
[Round "4"]
[White "Bodnar_Mykola"]
[Black "FMalexhdez"]
[Result "1-0"]
[WhiteElo "2539"]
[BlackElo "2206"]
[TimeControl "180+1"]
[EndTime "10:37:03 PST"]
[Termination "Bodnar_Mykola won by resignation"]

1. e4 {[%clk 0:03:00.9]} 1... c5 {[%clk 0:02:58.8]} 2. Nf3 {[%clk 0:03:01]} 2...
d6 {[%clk 0:02:59]} 3. d4 {[%clk 0:03:00.9]} 3... cxd4 {[%clk 0:02:59.6]} 4.
Nxd4 {[%clk 0:03:01.2]} 4... Nf6 {[%clk 0:03:00.2]} 5. f3 {[%clk 0:02:58.2]}
5... e5 {[%clk 0:02:58.5]} 6. Bb5+ {[%clk 0:02:56.7]} 6... Bd7 {[%clk
0:02:48.7]} 7. Bxd7+ {[%clk 0:02:56.6]} 7... Qxd7 {[%clk 0:02:46.1]} 8. Nf5
{[%clk 0:02:57.1]} 8... h5 {[%clk 0:02:41.4]} 9. Bg5 {[%clk 0:02:54.5]} 9... Nc6
{[%clk 0:02:30]} 10. Bxf6 {[%clk 0:02:52.4]} 10... gxf6 {[%clk 0:02:28]} 11. Nc3
{[%clk 0:02:52.9]} 11... Bh6 {[%clk 0:02:22.7]} 12. Nd5 {[%clk 0:02:52.3]} 12...
O-O-O {[%clk 0:02:19.4]} 13. Qd3 {[%clk 0:02:39.2]} 13... Kb8 {[%clk 0:01:52.1]}
14. O-O {[%clk 0:02:38.2]} 14... Qe6 {[%clk 0:01:49.6]} 15. Kh1 {[%clk 0:02:38]}
15... Rhg8 {[%clk 0:01:48.9]} 16. Nxh6 {[%clk 0:02:33.3]} 1-0

[Event "*** Titled Tuesday Blitz"]
[Site "Chess.com"]
[Date "2021.02.02"]
[Round "4"]
[White "imdvb6307"]
[Black "barbara25"]
[Result "1-0"]
[WhiteElo "2377"]
[BlackElo "2247"]
[TimeControl "180+1"]
[EndTime "10:37:18 PST"]
[Termination "imdvb6307 won by resignation"]

1. c4 {[%clk 0:03:00.9]} 1... Nf6 {[%clk 0:02:59]} 2. Nc3 {[%clk 0:03:00.2]}
2... e6 {[%clk 0:02:59.5]} 3. e4 {[%clk 0:03:00.2]} 3... d5 {[%clk 0:02:59.9]}
4. e5 {[%clk 0:02:58.1]} 4... Ne4 {[%clk 0:02:59.6]} 5. Nf3 {[%clk 0:02:50]}
5... Nc6 {[%clk 0:02:56.9]} 6. Qc2 {[%clk 0:02:47.7]} 6... Nxc3 {[%clk
0:02:56.3]} 7. dxc3 {[%clk 0:02:47.1]} 7... d4 {[%clk 0:02:56.2]} 8. Bg5 {[%clk
0:02:24.4]} 8... Be7 {[%clk 0:02:55.8]} 9. Bxe7 {[%clk 0:02:23]} 9... Qxe7
{[%clk 0:02:56.7]} 10. cxd4 {[%clk 0:02:20.1]} 10... O-O {[%clk 0:02:56.9]} 11.
Bd3 {[%clk 0:02:18]} 11... h6 {[%clk 0:02:56.1]} 12. Qc3 {[%clk 0:02:14.2]}
12... Rd8 {[%clk 0:02:56.5]} 13. Rd1 {[%clk 0:02:13]} 13... b6 {[%clk
0:02:50.4]} 14. O-O {[%clk 0:02:09]} 14... Bb7 {[%clk 0:02:50.2]} 15. Bb1 {[%clk
0:02:08.5]} 15... g6 {[%clk 0:02:45]} 16. Qe3 {[%clk 0:02:06.4]} 16... Kg7
{[%clk 0:02:44.3]} 17. Be4 {[%clk 0:02:03.2]} 17... Rd7 {[%clk 0:02:44]} 18. Qc3
{[%clk 0:01:44.3]} 18... Rad8 {[%clk 0:02:42.5]} 19. d5 {[%clk 0:01:44.1]} 19...
exd5 {[%clk 0:02:41.5]} 20. cxd5 {[%clk 0:01:43.5]} 20... Na5 {[%clk 0:02:37.2]}
21. e6+ {[%clk 0:01:42.7]} 1-0

[Event "*** Titled Tuesday Blitz"]
[Site "Chess.com"]
[Date "2021.02.02"]
[Round "4"]
[White "rasmussvane"]
[Black "SirStrateg"]
[Result "1-0"]
[WhiteElo "2870"]
[BlackElo "2653"]
[TimeControl "180+1"]
[EndTime "10:37:33 PST"]
[Termination "rasmussvane won by resignation"]

1. Nf3 {[%clk 0:03:00.9]} 1... d6 {[%clk 0:02:59.5]} 2. d4 {[%clk 0:03:00.4]}
2... Bg4 {[%clk 0:02:58.7]} 3. e4 {[%clk 0:03:00.3]} 3... Nf6 {[%clk 0:02:58.5]}
4. h3 {[%clk 0:02:59.1]} 4... Bh5 {[%clk 0:02:58.3]} 5. Nc3 {[%clk 0:02:59.3]}
5... c6 {[%clk 0:02:58.3]} 6. Qe2 {[%clk 0:02:59.5]} 6... e6 {[%clk 0:02:58.3]}
7. g4 {[%clk 0:02:59.7]} 7... Bg6 {[%clk 0:02:58.8]} 8. h4 {[%clk 0:03:00.3]}
8... h5 {[%clk 0:02:58.1]} 9. g5 {[%clk 0:03:00.8]} 9... Nfd7 {[%clk 0:02:58.5]}
10. d5 {[%clk 0:03:01.5]} 10... e5 {[%clk 0:02:55.4]} 11. Bh3 {[%clk 0:02:54.4]}
11... Be7 {[%clk 0:02:53.8]} 12. Be3 {[%clk 0:02:43.2]} 12... Na6 {[%clk
0:02:50.3]} 13. dxc6 {[%clk 0:02:35.6]} 13... Ndc5 {[%clk 0:02:50.3]} 14. cxb7
{[%clk 0:02:33.1]} 14... Rb8 {[%clk 0:02:50.7]} 15. b4 {[%clk 0:02:21.2]} 15...
Nxe4 {[%clk 0:02:40.4]} 16. Qxa6 {[%clk 0:02:20.9]} 16... Nxc3 {[%clk
0:02:37.2]} 17. Qc6+ {[%clk 0:02:21]} 17... Kf8 {[%clk 0:02:37.7]} 18. Qxc3
{[%clk 0:02:21.2]} 18... Be4 {[%clk 0:02:30.8]} 19. Ke2 {[%clk 0:02:05.7]} 19...
Bxb7 {[%clk 0:02:28.5]} 20. Rhd1 {[%clk 0:02:04.1]} 20... Ba6+ {[%clk
0:02:23.8]} 21. Ke1 {[%clk 0:02:03.8]} 21... Bb7 {[%clk 0:02:07.4]} 22. Nxe5
{[%clk 0:02:01.6]} 1-0

[Event "*** Titled Tuesday Blitz"]
[Site "Chess.com"]
[Date "2021.02.02"]
[Round "4"]
[White "LisikValera"]
[Black "Spalir"]
[Result "0-1"]
[WhiteElo "2470"]
[BlackElo "2629"]
[TimeControl "180+1"]
[EndTime "10:38:12 PST"]
[Termination "Spalir won by resignation"]

1. d4 {[%clk 0:03:00.9]} 1... Nf6 {[%clk 0:02:59.5]} 2. c4 {[%clk 0:03:00.4]}
2... g6 {[%clk 0:02:59.3]} 3. Nc3 {[%clk 0:03:00.8]} 3... d5 {[%clk 0:02:58]} 4.
Nf3 {[%clk 0:02:57.5]} 4... Bg7 {[%clk 0:02:56.2]} 5. cxd5 {[%clk 0:02:57.2]}
5... Nxd5 {[%clk 0:02:55.4]} 6. e4 {[%clk 0:02:57.9]} 6... Nxc3 {[%clk
0:02:55.3]} 7. bxc3 {[%clk 0:02:58.8]} 7... c5 {[%clk 0:02:53.6]} 8. h3 {[%clk
0:02:59.3]} 8... O-O {[%clk 0:02:50.3]} 9. Be2 {[%clk 0:02:59.5]} 9... Nc6
{[%clk 0:02:49.1]} 10. Be3 {[%clk 0:02:59.4]} 10... cxd4 {[%clk 0:02:46.3]} 11.
cxd4 {[%clk 0:03:00.3]} 11... Qa5+ {[%clk 0:02:43.8]} 12. Bd2 {[%clk 0:03:00.2]}
12... Qa3 {[%clk 0:02:41.8]} 13. d5 {[%clk 0:02:59.9]} 13... Ne5 {[%clk
0:02:41.3]} 14. Nxe5 {[%clk 0:02:59.1]} 14... Bxe5 {[%clk 0:02:38.7]} 15. O-O
{[%clk 0:02:59.5]} 15... Bxa1 {[%clk 0:02:27.6]} 16. Qxa1 {[%clk 0:03:00.4]}
16... f6 {[%clk 0:02:28.3]} 17. Rb1 {[%clk 0:02:53.5]} 17... Qc5 {[%clk
0:02:14.1]} 18. Bb4 {[%clk 0:02:46.5]} 18... Qc2 {[%clk 0:02:12.6]} 19. Bf3
{[%clk 0:02:39.6]} 19... Rf7 {[%clk 0:02:12.1]} 20. e5 {[%clk 0:02:38.8]} 20...
fxe5 {[%clk 0:02:07.4]} 21. d6 {[%clk 0:02:39]} 21... exd6 {[%clk 0:01:55.6]}
22. Bd5 {[%clk 0:02:38.7]} 22... Qxf2+ {[%clk 0:01:54]} 23. Kh1 {[%clk
0:02:37.3]} 23... Bf5 {[%clk 0:01:50.2]} 24. Bxd6 {[%clk 0:02:29.2]} 24... Bxb1
{[%clk 0:01:44.2]} 25. Qxb1 {[%clk 0:02:23.4]} 25... Rd8 {[%clk 0:01:41]} 26.
Qxb7 {[%clk 0:02:16.4]} 26... Rxd6 {[%clk 0:01:27.3]} 27. Bxf7+ {[%clk
0:02:14.2]} 27... Qxf7 {[%clk 0:01:26.2]} 28. Qb8+ {[%clk 0:02:13.6]} 28... Qf8
{[%clk 0:01:26.6]} 0-1

[Event "*** Titled Tuesday Blitz"]
[Site "Chess.com"]
[Date "2021.02.02"]
[Round "4"]
[White "night_player"]
[Black "amatatanav"]
[Result "0-1"]
[WhiteElo "2251"]
[BlackElo "2443"]
[TimeControl "180+1"]
[EndTime "10:38:40 PST"]
[Termination "amatatanav won by resignation"]

1. e4 {[%clk 0:03:00.9]} 1... c5 {[%clk 0:02:59.3]} 2. c3 {[%clk 0:03:00.9]}
2... Nf6 {[%clk 0:02:56.6]} 3. e5 {[%clk 0:03:00.9]} 3... Nd5 {[%clk 0:02:56.9]}
4. Bc4 {[%clk 0:03:01.8]} 4... Nb6 {[%clk 0:02:56.3]} 5. Bb3 {[%clk 0:03:01.9]}
5... Nc6 {[%clk 0:02:47.1]} 6. Nf3 {[%clk 0:03:01.3]} 6... d6 {[%clk 0:02:46.5]}
7. exd6 {[%clk 0:02:59.1]} 7... Qxd6 {[%clk 0:02:47.4]} 8. O-O {[%clk
0:02:59.4]} 8... Be6 {[%clk 0:02:44.4]} 9. Re1 {[%clk 0:02:57]} 9... Bxb3 {[%clk
0:02:41.8]} 10. Qxb3 {[%clk 0:02:53.4]} 10... c4 {[%clk 0:02:35.4]} 11. Qc2
{[%clk 0:02:50.5]} 11... g6 {[%clk 0:02:25.9]} 12. b3 {[%clk 0:02:48.6]} 12...
Bg7 {[%clk 0:02:17.2]} 13. Ba3 {[%clk 0:02:43]} 13... Qd3 {[%clk 0:02:03.3]} 14.
Qd1 {[%clk 0:02:36.4]} 14... Rd8 {[%clk 0:01:43.2]} 15. Re3 {[%clk 0:02:34.2]}
15... Qd5 {[%clk 0:01:34.3]} 16. Qe2 {[%clk 0:02:33.9]} 16... Rd7 {[%clk
0:01:33.2]} 17. Nd4 {[%clk 0:02:24]} 17... Bxd4 {[%clk 0:01:23.7]} 18. cxd4
{[%clk 0:02:23.9]} 18... Nxd4 {[%clk 0:01:24.6]} 19. Rxe7+ {[%clk 0:02:22.6]}
19... Kd8 {[%clk 0:01:21.3]} 20. Rxd7+ {[%clk 0:02:18.9]} 20... Qxd7 {[%clk
0:01:17.7]} 21. Qe4 {[%clk 0:02:15.8]} 21... Re8 {[%clk 0:01:11.2]} 22. Qh4+
{[%clk 0:02:15.8]} 22... Kc8 {[%clk 0:01:00.7]} 23. Nc3 {[%clk 0:02:14.8]} 23...
Nc2 {[%clk 0:00:57.4]} 0-1

[Event "*** Titled Tuesday Blitz"]
[Site "Chess.com"]
[Date "2021.02.02"]
[Round "4"]
[White "DrCeltic"]
[Black "Mr_Sinigami"]
[Result "0-1"]
[WhiteElo "2479"]
[BlackElo "2645"]
[TimeControl "180+1"]
[EndTime "10:38:55 PST"]
[Termination "Mr_Sinigami won by resignation"]

1. e4 {[%clk 0:03:00]} 1... c5 {[%clk 0:02:59.3]} 2. Nf3 {[%clk 0:03:00.3]} 2...
e6 {[%clk 0:02:59.2]} 3. c3 {[%clk 0:03:00.4]} 3... Nf6 {[%clk 0:02:58.3]} 4. e5
{[%clk 0:03:01.1]} 4... Nd5 {[%clk 0:02:58.5]} 5. d4 {[%clk 0:03:01.5]} 5...
cxd4 {[%clk 0:02:58.7]} 6. cxd4 {[%clk 0:03:02.4]} 6... d6 {[%clk 0:02:58.6]} 7.
a3 {[%clk 0:03:02.6]} 7... Nc6 {[%clk 0:02:57.6]} 8. Bd3 {[%clk 0:03:00.1]} 8...
Be7 {[%clk 0:02:56.8]} 9. O-O {[%clk 0:03:00.3]} 9... Bd7 {[%clk 0:02:54.5]} 10.
Qe2 {[%clk 0:03:00]} 10... Na5 {[%clk 0:02:32]} 11. Qd1 {[%clk 0:02:34.3]} 11...
Rc8 {[%clk 0:02:18.3]} 12. Nbd2 {[%clk 0:02:22.9]} 12... Nf4 {[%clk 0:01:54.1]}
13. Be4 {[%clk 0:02:12.1]} 13... Bb5 {[%clk 0:01:26.3]} 14. Re1 {[%clk
0:01:58.8]} 14... d5 {[%clk 0:01:22.2]} 15. Bb1 {[%clk 0:01:55.2]} 15... Be2
{[%clk 0:01:11.3]} 16. Rxe2 {[%clk 0:01:34.9]} 16... Rxc1 {[%clk 0:01:09]} 0-1

[Event "*** Titled Tuesday Blitz"]
[Site "Chess.com"]
[Date "2021.02.02"]
[Round "4"]
[White "niki_2003"]
[Black "Camels1981"]
[Result "0-1"]
[WhiteElo "2054"]
[BlackElo "2277"]
[TimeControl "180+1"]
[EndTime "10:39:04 PST"]
[Termination "Camels1981 won by checkmate"]

1. e4 {[%clk 0:03:00.9]} 1... c5 {[%clk 0:02:58.5]} 2. Nf3 {[%clk 0:03:00.1]}
2... d6 {[%clk 0:02:58]} 3. d4 {[%clk 0:03:00.6]} 3... cxd4 {[%clk 0:02:58]} 4.
Nxd4 {[%clk 0:03:01.5]} 4... Nf6 {[%clk 0:02:58.5]} 5. Nc3 {[%clk 0:03:02.1]}
5... a6 {[%clk 0:02:58.1]} 6. f3 {[%clk 0:03:01.4]} 6... e5 {[%clk 0:02:57.8]}
7. Nb3 {[%clk 0:03:00.6]} 7... Be6 {[%clk 0:02:58.3]} 8. Be3 {[%clk 0:02:59.9]}
8... b5 {[%clk 0:02:56.7]} 9. Be2 {[%clk 0:02:57]} 9... Nbd7 {[%clk 0:02:56.8]}
10. Qd2 {[%clk 0:02:56.5]} 10... Be7 {[%clk 0:02:54.8]} 11. O-O {[%clk
0:02:56.5]} 11... O-O {[%clk 0:02:53.3]} 12. Kh1 {[%clk 0:02:55.1]} 12... Nb6
{[%clk 0:02:52.8]} 13. a3 {[%clk 0:02:51.9]} 13... Rc8 {[%clk 0:02:51]} 14. f4
{[%clk 0:02:48.6]} 14... Nc4 {[%clk 0:02:45.9]} 15. Bxc4 {[%clk 0:02:43.1]}
15... Bxc4 {[%clk 0:02:45.8]} 16. Rfd1 {[%clk 0:02:31.4]} 16... Ng4 {[%clk
0:02:43.3]} 17. h3 {[%clk 0:02:29.5]} 17... Nxe3 {[%clk 0:02:27.9]} 18. Qxe3
{[%clk 0:02:29.8]} 18... Qc7 {[%clk 0:02:13.6]} 19. Rac1 {[%clk 0:02:23.3]}
19... Rfe8 {[%clk 0:01:52.7]} 20. Nd5 {[%clk 0:02:20.4]} 20... Bxd5 {[%clk
0:01:49.4]} 21. Rxd5 {[%clk 0:02:21.3]} 21... exf4 {[%clk 0:01:47.8]} 22. Qxf4
{[%clk 0:02:18.7]} 22... Bf6 {[%clk 0:01:48.3]} 23. c3 {[%clk 0:02:14.9]} 23...
Qc4 {[%clk 0:01:45.9]} 24. Nd4 {[%clk 0:02:00.5]} 24... Be5 {[%clk 0:01:39.3]}
25. Qf2 {[%clk 0:01:52.1]} 25... Qd3 {[%clk 0:01:22.4]} 26. Qf3 {[%clk
0:01:45.3]} 26... Qd2 {[%clk 0:01:15.3]} 27. Rc2 {[%clk 0:01:43]} 27... Qe1+
{[%clk 0:01:15]} 28. Qf1 {[%clk 0:01:37.5]} 28... Qxf1# {[%clk 0:01:14.7]} 0-1

[Event "*** Titled Tuesday Blitz"]
[Site "Chess.com"]
[Date "2021.02.02"]
[Round "4"]
[White "Nachsueb"]
[Black "Snowflake"]
[Result "0-1"]
[WhiteElo "2168"]
[BlackElo "2339"]
[TimeControl "180+1"]
[EndTime "10:39:11 PST"]
[Termination "Snowflake won by resignation"]

1. d4 {[%clk 0:03:00.9]} 1... Nf6 {[%clk 0:02:57.4]} 2. c4 {[%clk 0:03:01.1]}
2... e6 {[%clk 0:02:57.9]} 3. Nc3 {[%clk 0:03:00]} 3... d5 {[%clk 0:02:57.5]} 4.
Nf3 {[%clk 0:02:59]} 4... Be7 {[%clk 0:02:51.2]} 5. Bf4 {[%clk 0:02:52.9]} 5...
O-O {[%clk 0:02:49.7]} 6. e3 {[%clk 0:02:52.6]} 6... Nbd7 {[%clk 0:02:49.1]} 7.
c5 {[%clk 0:02:52.1]} 7... c6 {[%clk 0:02:49.6]} 8. Bd3 {[%clk 0:02:50.4]} 8...
b6 {[%clk 0:02:45.7]} 9. b4 {[%clk 0:02:50.9]} 9... a5 {[%clk 0:02:45.8]} 10. a3
{[%clk 0:02:51.5]} 10... Ba6 {[%clk 0:02:45.2]} 11. Bxa6 {[%clk 0:02:48.8]}
11... Rxa6 {[%clk 0:02:46.1]} 12. O-O {[%clk 0:02:48.7]} 12... Qa8 {[%clk
0:02:40.2]} 13. b5 {[%clk 0:02:33.7]} 13... cxb5 {[%clk 0:02:41.1]} 14. Nxb5
{[%clk 0:02:34.4]} 14... Qc6 {[%clk 0:02:32.3]} 15. a4 {[%clk 0:02:18.6]} 15...
bxc5 {[%clk 0:02:31.7]} 16. dxc5 {[%clk 0:02:11.6]} 16... Bxc5 {[%clk
0:02:32.6]} 17. Rc1 {[%clk 0:02:09.7]} 17... Ne4 {[%clk 0:02:24.2]} 18. Ne5
{[%clk 0:01:53.9]} 18... Nxe5 {[%clk 0:02:22.6]} 19. Bxe5 {[%clk 0:01:54.8]}
19... f6 {[%clk 0:02:22.3]} 20. Ba1 {[%clk 0:01:51.7]} 20... Qb7 {[%clk
0:02:16.9]} 21. Re1 {[%clk 0:01:47.6]} 21... Rc8 {[%clk 0:02:13.8]} 22. f3
{[%clk 0:01:45.9]} 22... Nd6 {[%clk 0:02:13.8]} 23. Nd4 {[%clk 0:01:39]} 23...
Qd7 {[%clk 0:02:10.4]} 24. Qb3 {[%clk 0:01:20.2]} 24... Bxd4 {[%clk 0:02:04.5]}
25. Bxd4 {[%clk 0:01:18.4]} 25... Nc4 {[%clk 0:02:03.1]} 26. e4 {[%clk
0:01:15.4]} 26... Raa8 {[%clk 0:02:01]} 27. exd5 {[%clk 0:01:06.8]} 27... Qxd5
{[%clk 0:01:54.9]} 28. Bf2 {[%clk 0:01:07]} 28... Ne5 {[%clk 0:01:49.9]} 29.
Rcd1 {[%clk 0:01:04.6]} 29... Qxb3 {[%clk 0:01:49.2]} 0-1